bitfinex/quotes_BTCUSD_20240731
["timestamp","ask_amount","ask_price","bid_price","bid_amount"]
[1722465382466,0.52365827,64894.0,64893.0,0.172929]
[1722465383203,0.44697,64894.0,64893.0,0.172929]
[1722465384073,0.44697,64894.0,64893.0,0.01883]
[1722465384426,0.47113482,64894.0,64893.0,0.01883]
[1722465384622,0.62523182,64894.0,64893.0,0.01883]
[1722465384924,1.4356079,64894.0,64893.0,0.01883]
[1722465385146,1.15047143,64894.0,64893.0,0.01883]
[1722465385409,0.66510934,64894.0,64893.0,0.01883]
[1722465385582,0.61790725,64894.0,64893.0,0.00983]
[1722465385983,0.61690725,64894.0,64893.0,0.00583]
[1722465386160,0.59383954,64894.0,64893.0,0.00583]
[1722465386419,0.59783954,64894.0,64893.0,0.00083]
[1722465387076,0.59383954,64894.0,64893.0,0.154929]
[1722465387277,0.56030602,64894.0,64893.0,0.00083]
[1722465387525,0.60644372,64894.0,64893.0,0.00083]
[1722465387720,0.56030602,64894.0,64893.0,0.00083]
[1722465387927,0.60644135,64894.0,64893.0,0.00083]
[1722465388325,0.56030602,64894.0,64893.0,0.00183]
[1722465388525,0.56030602,64894.0,64893.0,0.464128]
[1722465388732,0.42234099,64894.0,64893.0,0.772327]
[1722465388941,0.42234099,64894.0,64893.0,1.080526]
[1722465389338,0.34494099,64894.0,64893.0,1.23007772]
[1722465390767,0.34494099,64894.0,64893.0,1.35809735]
[1722465390976,0.34494099,64894.0,64893.0,1.66929635]
[1722465391176,0.33233482,64894.0,64893.0,1.79229635]
[1722465391410,0.33233482,64894.0,64893.0,1.93429635]
[1722465392243,0.33233482,64894.0,64893.0,1.93729635]
[1722465392635,0.33233482,64894.0,64893.0,1.93529635]
[1722465392916,0.33233482,64894.0,64893.0,1.93028838]
[1722465393117,0.33333482,64894.0,64893.0,1.85988838]
[1722465393346,0.41453482,64894.0,64893.0,1.46608938]
[1722465393627,0.43822479,64894.0,64893.0,1.46609511]
[1722465394125,0.43822479,64894.0,64893.0,1.34707772]
[1722465395411,0.43822479,64894.0,64893.0,1.48423109]
[1722465395719,0.43822479,64894.0,64893.0,1.3562106]
[1722465396092,0.41405997,64894.0,64893.0,1.4842282]
[1722465396290,0.33285997,64894.0,64893.0,1.4842282]
[1722465398231,0.33285997,64894.0,64893.0,1.3562106]
[1722465399423,0.35702366,64894.0,64893.0,1.48423082]
[1722465399620,0.35702366,64894.0,64893.0,1.3562106]
[1722465400500,0.35702366,64894.0,64893.0,1.48423079]
[1722465400766,0.33285997,64894.0,64893.0,1.48423079]
[1722465402299,0.33285997,64894.0,64893.0,1.48422769]
[1722465403141,0.33285997,64894.0,64893.0,1.48422972]
[1722465403732,0.35702366,64894.0,64893.0,1.48422972]
[1722465404152,0.33285997,64894.0,64893.0,1.48422972]
[1722465406285,0.33285997,64894.0,64893.0,1.48422737]
[1722465406643,0.33176087,64894.0,64893.0,1.48422737]
[1722465407367,0.35592456,64894.0,64893.0,1.48422737]
[1722465408578,0.33176087,64894.0,64893.0,1.48422737]
[1722465409424,0.33176087,64894.0,64893.0,1.48423063]
[1722465409846,0.33176087,64894.0,64893.0,1.3562106]
[1722465410045,0.33176087,64894.0,64893.0,1.48423049]
[1722465410447,0.30917,64894.0,64893.0,1.48423049]
[1722465410978,0.30917,64894.0,64893.0,1.85302949]
[1722465411186,0.30917,64894.0,64893.0,1.87602949]
[1722465411459,0.30917,64894.0,64893.0,1.88602949]
[1722465412309,0.30917,64894.0,64893.0,1.87702949]
[1722465412530,0.30917,64894.0,64893.0,1.86801335]
[1722465412531,0.30817,64894.0,64893.0,1.86801335]
[1722465412705,0.30817,64894.0,64893.0,1.87701335]
[1722465412942,0.30917,64894.0,64893.0,1.87701335]
[1722465413153,0.30817,64894.0,64893.0,1.86801335]
[1722465413542,0.30917,64894.0,64893.0,1.88101335]
[1722465413783,0.30817,64894.0,64893.0,1.87701335]
[1722465413984,0.30817,64894.0,64893.0,1.89001335]
[1722465414186,0.30917,64894.0,64893.0,1.89001335]
[1722465414386,0.30917,64894.0,64893.0,1.86801335]
[1722465414570,0.30917,64894.0,64893.0,1.88201335]
[1722465415638,0.33333334,64894.0,64893.0,1.89601335]
[1722465415816,0.30917,64894.0,64893.0,1.89601335]
[1722465418758,0.30917,64894.0,64893.0,1.7680096]
[1722465418957,0.30917,64894.0,64893.0,1.89601363]
[1722465419205,0.33333334,64894.0,64893.0,1.89601363]
[1722465421148,0.33333334,64894.0,64893.0,1.89601356]
[1722465421351,0.33333334,64894.0,64893.0,1.82541356]
[1722465422903,0.33333334,64894.0,64893.0,1.83541356]
[1722465423717,0.30917,64894.0,64893.0,1.83541356]
[1722465424120,0.30917,64894.0,64893.0,1.7074096]
[1722465424258,0.30917,64894.0,64893.0,1.83542112]
[1722465425512,0.30917,64894.0,64893.0,1.97612112]
[1722465426880,0.3333333,64894.0,64893.0,1.97612112]
[1722465427081,0.30917,64894.0,64893.0,2.20492012]
[1722465427289,0.30917,64894.0,64893.0,2.0769086]
[1722465427491,0.30917,64894.0,64893.0,2.22491256]
[1722465427894,0.30917,64894.0,64893.0,2.17691256]
[1722465427895,0.30817,64894.0,64893.0,2.17691256]
[1722465428026,0.30817,64894.0,64893.0,2.19691256]
[1722465428227,0.30817,64894.0,64893.0,2.21291256]
[1722465428426,0.30817,64894.0,64893.0,2.19091256]
[1722465428632,0.30817,64894.0,64893.0,1.88271356]
[1722465428827,0.39127,64894.0,64893.0,1.82141356]
[1722465429226,0.39227,64894.0,64893.0,1.83541356]
[1722465429434,0.39227,64894.0,64893.0,1.82141356]
[1722465429435,0.39127,64894.0,64893.0,1.82141356]
[1722465429645,0.39127,64894.0,64893.0,1.80741057]
[1722465429847,0.39227,64894.0,64893.0,1.83541057]
[1722465430264,0.30917,64894.0,64893.0,1.83541057]
[1722465430471,0.33333345,64894.0,64893.0,1.96170975]
[1722465430671,0.33233345,64894.0,64893.0,1.96170975]
[1722465430878,0.33233345,64894.0,64893.0,1.88540975]
[1722465431048,0.33333345,64894.0,64893.0,1.83540975]
[1722465431247,0.33333345,64894.0,64893.0,1.83540993]
[1722465432061,0.40843345,64894.0,64893.0,1.83540993]
[1722465432297,0.40743345,64894.0,64893.0,1.81140993]
[1722465432740,0.40843345,64894.0,64893.0,1.49421093]
[1722465434097,0.40843345,64894.0,64893.0,1.51721093]
[1722465435518,0.38427,64894.0,64893.0,1.51721093]
[1722465436482,0.44647,64894.0,64893.0,0.7498126]
[1722465436876,0.44647,64894.0,64893.0,1.0580116]
[1722465437066,0.44147,64894.0,64893.0,1.0580116]
[1722465437201,0.44147,64894.0,64893.0,1.0440116]
[1722465437402,0.44047,64894.0,64893.0,0.89445988]
[1722465437673,0.44147,64894.0,64893.0,0.19206188]
[1722465437802,0.44147,64894.0,64893.0,0.50026088]
[1722465438215,0.44147,64894.0,64893.0,0.80845988]
[1722465438844,0.46563465,64894.0,64893.0,0.80845988]
[1722465439094,0.44147,64894.0,64893.0,0.79445988]
[1722465439307,0.44147,64894.0,64893.0,0.80845988]
[1722465440350,0.44147,64894.0,64893.0,0.50026088]
[1722465440558,0.44147,64894.0,64893.0,0.80845988]
[1722465440755,0.44147,64894.0,64893.0,0.50026088]
[1722465441160,0.44147,64894.0,64893.0,0.80845988]
[1722465442019,0.44147,64894.0,64893.0,0.79445988]
[1722465442242,0.44047,64894.0,64893.0,0.47226088]
[1722465442446,0.46463465,64894.0,64893.0,0.78045988]
[1722465442643,0.46463465,64894.0,64893.0,0.78245988]
[1722465442842,0.46463465,64894.0,64893.0,0.79045988]
[1722465443089,0.46463465,64894.0,64893.0,1.2482106]
[1722465443287,0.40243465,64894.0,64893.0,1.2482106]
[1722465443500,0.40243465,64894.0,64893.0,1.2402106]
[1722465443704,0.37827,64894.0,64893.0,1.2442106]
[1722465443904,0.37827,64894.0,64893.0,1.2422106]
[1722465444310,0.37927,64894.0,64893.0,1.2492106]
[1722465444751,0.30417,64894.0,64893.0,1.2492106]
[1722465445079,0.30417,64894.0,64893.0,1.2452106]
[1722465445284,0.30417,64894.0,64893.0,1.2382106]
[1722465445285,0.30317,64894.0,64893.0,1.2382106]
[1722465445700,0.30417,64894.0,64893.0,1.2532106]
[1722465445895,0.30417,64894.0,64893.0,1.37422677]
[1722465446255,0.30517,64894.0,64893.0,1.37522677]
[1722465446458,0.30517,64894.0,64893.0,1.5554096]
[1722465446727,0.30517,64894.0,64893.0,1.5894096]
[1722465447144,0.30517,64894.0,64893.0,1.71742078]
[1722465448338,0.32933528,64894.0,64893.0,1.78362078]
[1722465448841,0.30517,64894.0,64893.0,1.88362078]
[1722465449388,0.30608301,64894.0,64893.0,1.88362078]
[1722465449836,0.30608301,64894.0,64893.0,1.81742078]
[1722465451347,0.33024649,64894.0,64893.0,1.81742078]
[1722465452070,0.30608301,64894.0,64893.0,1.81742078]
[1722465452650,0.30608301,64894.0,64893.0,1.6994096]
[1722465452852,0.30608301,64894.0,64893.0,1.90281953]
[1722465453104,0.30608301,64894.0,64893.0,3.71101853]
[1722465453255,0.30608301,64894.0,64893.0,3.79231853]
[1722465453456,0.30608301,64894.0,64893.0,3.77231853]
[1722465454290,0.30608301,64894.0,64893.0,3.78131853]
[1722465454849,0.30608301,64894.0,64893.0,3.79531853]
[1722465454974,0.30608301,64894.0,64893.0,2.27531853]
[1722465455171,0.33024611,64894.0,64893.0,2.26131853]
[1722465455414,0.33024611,64894.0,64893.0,2.27531853]
[1722465455619,0.32824611,64894.0,64893.0,2.26631853]
[1722465455795,0.32824611,64894.0,64893.0,2.1383086]
[1722465455999,0.32824611,64894.0,64893.0,2.26630795]
[1722465456238,0.32824611,64894.0,64893.0,2.30030795]
[1722465456438,0.32824611,64894.0,64893.0,2.30230807]
[1722465456642,0.32824611,64894.0,64893.0,2.51515633]
[1722465456864,0.32824611,64894.0,64893.0,2.52425651]
[1722465457065,0.32824611,64894.0,64893.0,2.45495598]
[1722465457373,0.32824611,64894.0,64893.0,2.46895598]
[1722465457524,0.32824611,64894.0,64893.0,2.45495598]
[1722465457729,0.32824611,64894.0,64893.0,2.50114483]
[1722465457907,0.32824611,64894.0,64893.0,2.26630807]
[1722465458110,0.32824611,64894.0,64893.0,2.17690807]
[1722465458327,0.32824611,64894.0,64893.0,1.8074078]
[1722465458555,0.32824611,64894.0,64893.0,1.8214078]
[1722465458894,0.32824611,64894.0,64893.0,1.6834096]
[1722465459024,0.32824611,64894.0,64893.0,1.79741138]
[1722465459248,0.32824611,64894.0,64893.0,1.81141138]
[1722465459457,0.32824611,64894.0,64893.0,1.83541138]
[1722465459650,0.32824611,64894.0,64893.0,1.80741138]
[1722465460037,0.32824611,64894.0,64893.0,1.82141138]
[1722465460269,0.32824611,64894.0,64893.0,1.80741138]
[1722465460742,0.32824611,64894.0,64893.0,1.83541138]
[1722465461305,0.32824611,64894.0,64893.0,1.51721238]
[1722465461940,0.32824611,64894.0,64893.0,1.50321238]
[1722465462137,0.32824611,64894.0,64893.0,1.51722198]
[1722465462317,0.32824611,64894.0,64893.0,1.50322198]
[1722465463043,0.32824611,64894.0,64893.0,1.51722198]
[1722465463243,0.30408301,64894.0,64893.0,1.51722198]
[1722465465361,0.30408301,64894.0,64893.0,1.3892106]
[1722465465585,0.30408301,64894.0,64893.0,1.51722142]
[1722465465797,0.30408301,64894.0,64893.0,1.3892106]
[1722465465992,0.30408301,64894.0,64893.0,1.51722076]
[1722465466247,0.30408301,64894.0,64893.0,1.83541976]
[1722465466595,0.32824557,64894.0,64893.0,1.83541976]
[1722465467416,0.30408301,64894.0,64893.0,3.33541976]
[1722465467934,0.30408301,64894.0,64893.0,3.33541405]
[1722465468571,0.30408301,64894.0,64893.0,3.33541116]
[1722465468745,0.30408301,64894.0,64893.0,3.33541117]
[1722465470402,0.30408301,64894.0,64893.0,3.64361017]
[1722465470818,0.32824511,64894.0,64893.0,3.64361017]
[1722465473143,0.32824511,64894.0,64893.0,3.8099563]
[1722465473418,0.32824511,64894.0,64893.0,3.64361017]
[1722465474820,0.32824511,64894.0,64893.0,3.64360982]
[1722465475407,0.30408301,64894.0,64893.0,3.64361099]
[1722465477223,0.30408301,64894.0,64893.0,3.5156086]
[1722465477356,0.30408301,64894.0,64893.0,3.76360834]
[1722465477357,0.29493466,64894.0,64893.0,3.76360834]
[1722465477557,0.25692747,64894.0,64893.0,3.93179861]
[1722465477776,0.00091301,64900.0,64899.0,1.82494]
[1722465478065,0.0784,64911.0,64908.0,0.572192]
[1722465478276,0.0784,64911.0,64908.0,1.31157082]
[1722465478480,0.091759,64914.0,64908.0,1.92782682]
[1722465478680,0.091759,64914.0,64908.0,1.94782682]
[1722465478681,0.02465662,64909.0,64908.0,1.94782682]
[1722465478882,0.02465662,64909.0,64908.0,2.23595482]
[1722465479212,0.0005,64909.0,64908.0,2.25595482]
[1722465479414,0.0005,64909.0,64908.0,2.24995482]
[1722465479662,0.0005,64909.0,64908.0,2.23595482]
[1722465479841,0.0005,64909.0,64908.0,2.25595482]
[1722465480001,0.0005,64909.0,64908.0,2.26995482]
[1722465480221,0.009559,64914.0,64913.0,1.396468]
[1722465480423,0.009559,64914.0,64913.0,1.79699453]
[1722465480829,0.009559,64914.0,64913.0,1.79697719]
[1722465481933,0.009559,64914.0,64913.0,1.81097719]
[1722465482135,0.009559,64914.0,64913.0,1.82497719]
[1722465482330,0.03371308,64914.0,64913.0,1.82497719]
[1722465482879,0.02537371,64914.0,64913.0,1.81097719]
[1722465483090,0.02537371,64914.0,64913.0,1.79698543]
[1722465483301,0.02537371,64914.0,64913.0,1.81098531]
[1722465483706,0.02537371,64914.0,64913.0,1.81098478]
[1722465484592,0.02537371,64914.0,64913.0,1.83401028]
[1722465485004,0.02537371,64914.0,64913.0,1.80601028]
[1722465485411,0.02537371,64914.0,64913.0,1.83401028]
[1722465485627,0.0005,64929.0,64913.0,1.83401028]
[1722465485628,0.0837,64929.0,64928.0,0.770082]
[1722465485845,0.0837,64929.0,64928.0,1.29139101]
[1722465486281,0.0837,64929.0,64928.0,1.69942401]
[1722465487129,0.0837,64929.0,64928.0,1.68942401]
[1722465488064,0.0837,64929.0,64928.0,1.70642401]
[1722465488268,0.0837,64929.0,64928.0,1.71342401]
[1722465488470,0.0837,64929.0,64928.0,1.72742401]
[1722465488808,0.0837,64929.0,64928.0,1.71342401]
[1722465489092,0.0837,64929.0,64928.0,1.72742401]
[1722465489508,0.0005,64929.0,64928.0,1.72742401]
[1722465489925,0.0005,64929.0,64928.0,1.71342401]
[1722465490127,0.0246489,64929.0,64928.0,1.71342401]
[1722465490352,0.0246489,64929.0,64928.0,1.72264751]
[1722465490739,0.0246489,64929.0,64928.0,1.70864751]
[1722465490945,0.0246489,64929.0,64928.0,1.67792322]
[1722465491147,0.0246489,64929.0,64928.0,1.69192322]
[1722465491703,0.0246489,64929.0,64928.0,1.67792322]
[1722465491889,0.0246489,64929.0,64928.0,1.70592322]
[1722465492176,0.0246489,64929.0,64928.0,1.69192322]
[1722465492711,0.0246489,64929.0,64928.0,1.67792322]
[1722465493219,0.0246489,64929.0,64928.0,1.69192322]
[1722465494655,0.0246489,64929.0,64928.0,1.70592322]
[1722465494877,0.0246489,64929.0,64928.0,1.69192322]
[1722465495169,0.0246489,64929.0,64928.0,1.70592322]
[1722465495378,0.0246489,64929.0,64928.0,1.69192322]
[1722465495793,0.0246489,64929.0,64928.0,1.70592322]
[1722465495996,0.0246489,64929.0,64928.0,1.69192322]
[1722465497771,0.0246489,64929.0,64928.0,1.70592322]
[1722465498059,0.0246489,64929.0,64928.0,1.69192322]
[1722465498384,0.0246489,64929.0,64928.0,1.70592322]
[1722465502285,0.0246489,64929.0,64928.0,1.83385359]
[1722465502672,0.0246489,64929.0,64928.0,1.70592322]
[1722465504096,0.0246489,64929.0,64928.0,1.83385709]
[1722465504522,0.0005,64929.0,64928.0,1.8338561]
[1722465505157,0.0005,64929.0,64928.0,1.83385488]
[1722465506100,0.009559,64931.0,64928.0,2.36158788]
[1722465506307,0.00954801,64937.0,64936.0,0.163997]
[1722465506555,1e-08,64937.0,64936.0,1.49117413]
[1722465506791,0.0765,64945.0,64944.0,1.187849]
[1722465506961,0.0005,64949.0,64946.0,0.558122]
[1722465507187,1e-08,64947.0,64946.0,1.83944938]
[1722465507411,1e-08,64947.0,64946.0,2.17039738]
[1722465508194,0.00954801,64954.0,64953.0,0.11]
[1722465508533,0.0808,64963.0,64958.0,0.779727]
[1722465508684,0.0808,64963.0,64958.0,1.38805315]
[1722465508845,0.0808,64963.0,64958.0,1.5734691]
[1722465509049,0.0808,64963.0,64958.0,1.8713601]
[1722465509252,0.08634801,64959.0,64958.0,1.35016972]
[1722465509456,0.14894801,64959.0,64958.0,0.61138772]
[1722465509875,0.14894801,64959.0,64958.0,0.91927872]
[1722465510327,0.14894801,64959.0,64958.0,1.22716972]
[1722465510537,0.14894801,64959.0,64958.0,1.2593825]
[1722465510713,0.14894801,64959.0,64958.0,1.5672735]
[1722465510914,0.14894801,64959.0,64958.0,1.5772735]
[1722465511272,0.14894801,64959.0,64958.0,1.5912735]
[1722465511475,0.14894801,64959.0,64958.0,1.5672735]
[1722465511802,0.08634801,64959.0,64958.0,1.6762735]
[1722465512066,0.00954801,64959.0,64958.0,1.6862735]
[1722465512285,0.00954801,64959.0,64958.0,1.6772735]
[1722465512499,0.00939585,64959.0,64958.0,1.74384257]
[1722465512704,0.00939585,64959.0,64958.0,1.72984257]
[1722465512880,0.00939585,64959.0,64958.0,1.86771621]
[1722465513078,0.00939585,64959.0,64958.0,1.92599777]
[1722465513314,0.00939585,64959.0,64958.0,1.80514714]
[1722465513520,0.00939585,64959.0,64958.0,1.6772735]
[1722465513637,0.00939585,64959.0,64958.0,1.6892735]
[1722465514100,0.00939585,64959.0,64958.0,1.6772735]
[1722465514302,0.00939585,64959.0,64958.0,1.6912735]
[1722465514680,0.00939585,64959.0,64958.0,1.52525621]
[1722465514884,0.00939585,64959.0,64958.0,1.3873825]
[1722465515053,0.00939585,64959.0,64958.0,1.3733825]
[1722465515195,0.00939585,64959.0,64958.0,1.3873825]
[1722465515598,0.00939585,64959.0,64958.0,1.3733825]
[1722465516526,0.00939585,64959.0,64958.0,1.3873825]
[1722465516720,0.00939585,64959.0,64958.0,1.3733825]
[1722465516983,0.00939585,64959.0,64958.0,1.3873825]
[1722465517598,0.00939585,64959.0,64958.0,1.3733825]
[1722465518220,0.00939585,64959.0,64958.0,1.3873825]
[1722465518843,0.0146326,64966.0,64965.0,1.287503]
[1722465519048,0.0146326,64966.0,64965.0,2.24620657]
[1722465519257,0.0005,64969.0,64968.0,1.395293]
[1722465519464,0.0005,64969.0,64968.0,1.79571428]
[1722465519617,0.0005,64969.0,64968.0,1.66784472]
[1722465519823,0.0005,64969.0,64968.0,1.79569885]
[1722465520432,0.0005,64969.0,64968.0,1.80969885]
[1722465520835,0.0005,64969.0,64968.0,1.66784472]
[1722465521445,0.0005,64969.0,64968.0,1.68184472]
[1722465521616,0.0005,64969.0,64968.0,1.65784472]
[1722465521823,0.1441,64969.0,64968.0,1.01915872]
[1722465522023,0.1441,64969.0,64968.0,1.34100172]
[1722465522274,0.1441,64969.0,64968.0,1.35003003]
[1722465522480,0.1441,64969.0,64968.0,1.36403003]
[1722465522880,0.1441,64969.0,64968.0,1.04218703]
[1722465523075,0.1441,64969.0,64968.0,1.05618703]
[1722465523709,0.1441,64969.0,64968.0,1.04218703]
[1722465523899,0.1441,64969.0,64968.0,1.05618703]
[1722465524350,0.1441,64969.0,64968.0,1.04218703]
[1722465524738,0.1441,64969.0,64968.0,1.05618703]
[1722465524963,0.1441,64969.0,64968.0,1.04218703]
[1722465525166,0.1441,64969.0,64968.0,1.35003003]
[1722465525369,0.1441,64969.0,64968.0,1.04218703]
[1722465525570,0.1441,64969.0,64968.0,1.36403003]
[1722465525776,0.1441,64969.0,64968.0,1.05618703]
[1722465526464,0.1441,64969.0,64968.0,1.36403003]
[1722465526669,0.1441,64969.0,64968.0,1.05618703]
[1722465527512,0.1441,64969.0,64968.0,1.60673003]
[1722465527716,0.0801,64969.0,64968.0,1.60673003]
[1722465528098,0.0801,64969.0,64968.0,1.73458421]
[1722465528297,0.0801,64969.0,64968.0,1.72058421]
[1722465528500,0.0801,64969.0,64968.0,1.57873003]
[1722465528700,0.0801,64969.0,64968.0,1.59273003]
[1722465528900,0.0801,64969.0,64968.0,1.73458674]
[1722465529080,0.0801,64969.0,64968.0,1.70658674]
[1722465529285,0.0801,64969.0,64968.0,1.57873003]
[1722465529503,0.0801,64969.0,64968.0,1.60673003]
[1722465529904,0.0801,64969.0,64968.0,1.57873003]
[1722465530117,0.0801,64969.0,64968.0,1.59273003]
[1722465530745,0.0801,64969.0,64968.0,1.72058729]
[1722465530961,0.0801,64969.0,64968.0,1.59273003]
[1722465531105,0.0801,64969.0,64968.0,1.60673003]
[1722465531714,0.0801,64969.0,64968.0,1.59273003]
[1722465532570,0.0801,64969.0,64968.0,1.60673003]
[1722465532768,0.0801,64969.0,64968.0,1.59273003]
[1722465533167,0.0801,64969.0,64968.0,1.60673003]
[1722465533498,0.0801,64969.0,64968.0,1.73459168]
[1722465536296,0.0801,64969.0,64968.0,1.60673003]
[1722465536449,0.0801,64969.0,64968.0,1.73459202]
[1722465537735,0.1458,64969.0,64968.0,1.18404902]
[1722465538778,0.1458,64969.0,64968.0,0.56836302]
[1722465538984,0.1458,64969.0,64968.0,0.3188113]
[1722465539191,0.1458,64969.0,64968.0,0.6266543]
[1722465539542,0.1458,64969.0,64968.0,0.62666572]
[1722465539751,0.1458,64969.0,64968.0,0.93450872]
[1722465539953,0.1458,64969.0,64968.0,0.80663531]
[1722465540319,0.1458,64969.0,64968.0,0.62666561]
[1722465540637,0.1458,64969.0,64968.0,0.93450861]
[1722465541247,0.1458,64969.0,64968.0,1.24235161]
[1722465541449,0.1458,64969.0,64968.0,0.0059733]
[1722465541450,0.92737707,64969.0,64968.0,0.0059733]
[1722465541653,0.92737707,64969.0,64940.0,0.1]
[1722465541654,0.0647,64946.0,64935.0,0.1]
[1722465541853,0.0647,64946.0,64939.0,0.75656172]
[1722465542053,0.0647,64946.0,64936.0,0.2774707]
[1722465542054,0.076,64945.0,64940.0,0.14955172]
[1722465542281,0.076,64945.0,64941.0,0.30797]
[1722465542495,0.0647,64944.0,64943.0,0.461943]
[1722465542702,0.07667344,64944.0,64943.0,0.18470529]
[1722465543151,0.07667344,64944.0,64943.0,0.49266729]
[1722465543279,0.07667344,64944.0,64943.0,0.80062929]
[1722465543476,0.07667344,64944.0,64943.0,0.49266729]
[1722465543920,0.07667344,64944.0,64943.0,0.50066729]
[1722465544355,0.07667344,64944.0,64943.0,0.49566729]
[1722465544565,0.07667344,64944.0,64943.0,0.18770529]
[1722465544897,0.07667344,64944.0,64943.0,0.03372429]
[1722465545106,0.07667344,64944.0,64943.0,0.18470529]
[1722465545303,0.07667344,64944.0,64943.0,0.18570529]
[1722465545548,0.07667344,64944.0,64943.0,0.18553529]
[1722465545724,0.07667344,64944.0,64943.0,0.03455429]
[1722465545923,0.0687,64944.0,64943.0,0.03455429]
[1722465546143,0.0687,64944.0,64943.0,0.03155429]
[1722465546510,0.224678,64944.0,64943.0,0.03155429]
[1722465546716,0.298478,64944.0,64943.0,0.03155429]
[1722465546914,0.917392,64944.0,64943.0,0.03155429]
[1722465547276,1.225349,64944.0,64943.0,0.03155429]
[1722465547515,1.227349,64944.0,64943.0,0.03155429]
[1722465547736,1.23932053,64944.0,64943.0,0.00083]
[1722465547955,0.62340653,64944.0,64943.0,0.00083]
[1722465548160,0.31544953,64944.0,64943.0,0.00083]
[1722465548364,0.16147153,64944.0,64943.0,0.00083]
[1722465548578,0.16147153,64944.0,64943.0,0.462773]
[1722465548783,0.1475,64944.0,64943.0,0.770735]
[1722465548938,0.1425,64944.0,64943.0,0.770735]
[1722465549143,0.1505,64944.0,64943.0,0.770735]
[1722465549523,0.1425,64944.0,64943.0,0.770735]
[1722465549726,0.1425,64944.0,64943.0,0.771735]
[1722465550193,0.781896,64957.0,64943.0,0.771735]
[1722465550194,0.0621,64950.0,64949.0,0.461899]
[1722465550395,0.0765994,64950.0,64949.0,0.49262329]
[1722465550717,0.0621,64950.0,64949.0,0.95010801]
[1722465551789,0.0778,64956.0,64955.0,0.461857]
[1722465552017,0.09473275,64956.0,64955.0,0.461857]
[1722465552436,0.15813275,64956.0,64955.0,0.461857]
[1722465552977,0.01693275,64956.0,64955.0,0.91931372]
[1722465553183,0.003,64956.0,64955.0,0.30350372]
[1722465553384,0.008,64956.0,64955.0,1.22721872]
[1722465554010,0.005,64956.0,64955.0,1.22721872]
[1722465554453,0.005,64956.0,64955.0,1.25021872]
[1722465555082,0.005,64956.0,64955.0,1.55812372]
[1722465555303,0.08021301,64968.0,64967.0,0.76962]
[1722465555480,0.08021301,64968.0,64967.0,0.80034429]
[1722465555681,0.00091301,64968.0,64967.0,1.25774401]
[1722465555903,0.00091301,64968.0,64967.0,0.94989601]
[1722465556103,0.00091301,64968.0,64967.0,0.80034429]
[1722465557064,0.00091301,64968.0,64967.0,0.80534429]
[1722465557309,0.00091301,64968.0,64967.0,1.26274401]
[1722465558100,0.00091301,64968.0,64967.0,1.28574401]
[1722465558300,0.00091301,64968.0,64967.0,1.69359201]
[1722465558525,0.00091301,64968.0,64967.0,1.38074401]
[1722465558735,0.00091301,64968.0,64967.0,1.48874401]
[1722465559290,0.00091301,64968.0,64967.0,1.48374401]
[1722465559491,0.00091301,64968.0,64967.0,2.08586401]
[1722465559713,0.00291301,64968.0,64967.0,2.22372188]
[1722465559875,0.00291301,64968.0,64967.0,3.72372188]
[1722465560090,0.00191301,64968.0,64967.0,3.59486401]
[1722465560293,0.00091301,64968.0,64967.0,3.59986401]
[1722465560498,0.00191301,64968.0,64967.0,3.56913972]
[1722465560756,0.00191301,64968.0,64967.0,3.69074783]
[1722465561206,0.00191301,64968.0,64967.0,3.71274783]
[1722465561381,0.00191301,64968.0,64967.0,3.99859583]
[1722465561585,0.00291301,64968.0,64967.0,4.01259583]
[1722465561818,0.00191301,64968.0,64967.0,3.99859583]
[1722465561978,0.00091301,64968.0,64967.0,4.00459583]
[1722465562306,0.00191301,64968.0,64967.0,3.99859583]
[1722465562650,0.00191301,64968.0,64967.0,4.01259583]
[1722465562850,0.00091301,64968.0,64967.0,3.99859583]
[1722465563052,0.00191301,64968.0,64967.0,4.01259583]
[1722465563452,0.00191301,64968.0,64967.0,3.99859583]
[1722465563716,0.00191301,64968.0,64967.0,4.01259583]
[1722465564554,0.00091301,64968.0,64967.0,3.99859583]
[1722465564761,0.00191301,64968.0,64967.0,4.01259583]
[1722465564976,0.00191301,64968.0,64967.0,3.99859583]
[1722465565180,0.00191301,64968.0,64967.0,4.01259583]
[1722465565386,0.00091301,64968.0,64967.0,3.99859583]
[1722465565531,0.00191301,64968.0,64967.0,3.99859583]
[1722465565732,0.00191301,64968.0,64967.0,2.08313972]
[1722465565932,0.00191301,64968.0,64967.0,2.06913972]
[1722465566134,0.00091301,64968.0,64967.0,2.05513972]
[1722465566355,0.00191301,64968.0,64967.0,2.08313972]
[1722465566913,0.00191301,64968.0,64967.0,2.06913972]
[1722465567813,0.00191301,64968.0,64967.0,1.98183972]
[1722465568221,0.00191301,64968.0,64967.0,1.96783972]
[1722465568418,0.00091301,64968.0,64967.0,1.81926772]
[1722465568646,0.00191301,64968.0,64967.0,6.88326772]
[1722465568808,0.00191301,64968.0,64967.0,6.89726772]
[1722465569000,0.00091301,64968.0,64967.0,6.86926772]
[1722465569425,0.00191301,64968.0,64967.0,6.89726772]
[1722465569622,0.00191301,64968.0,64967.0,6.89281572]
[1722465569835,0.00091301,64968.0,64967.0,6.89281572]
[1722465570034,0.00091301,64968.0,64967.0,7.20066372]
[1722465570232,0.00091301,64968.0,64967.0,7.19666372]
[1722465570431,0.00091301,64968.0,64967.0,7.23066372]
[1722465570655,0.00191301,64968.0,64967.0,7.24466372]
[1722465571018,0.00191301,64968.0,64967.0,6.85541572]
[1722465571624,0.00191301,64968.0,64967.0,7.16326372]
[1722465571843,0.00191301,64968.0,64967.0,6.85541572]
[1722465572249,0.00091301,64968.0,64967.0,7.14926372]
[1722465572446,0.00191301,64968.0,64967.0,7.16326372]
[1722465573297,0.00191301,64968.0,64967.0,6.85541572]
[1722465573472,0.0005,64969.0,64968.0,1.10745]
[1722465573473,1e-08,64969.0,64968.0,1.10745]
[1722465573680,1e-08,64969.0,64968.0,6.44228021]
[1722465573876,1e-08,64969.0,64968.0,1.69856901]
[1722465574250,1e-08,64969.0,64968.0,1.71856901]
[1722465574484,1e-08,64969.0,64968.0,2.02641201]
[1722465575342,1e-08,64969.0,64968.0,2.1769069]
[1722465575548,1e-08,64969.0,64968.0,2.1569069]
[1722465575549,0.00100001,64969.0,64968.0,2.1569069]
[1722465575758,0.00100001,64969.0,64968.0,1.72656901]
[1722465576348,0.00100001,64969.0,64968.0,6.77656901]
[1722465576553,1e-08,64969.0,64968.0,6.74856901]
[1722465576911,1e-08,64969.0,64968.0,1.71256901]
[1722465578106,0.00100001,64969.0,64968.0,1.83597275]
[1722465578456,0.00100001,64969.0,64968.0,1.84997275]
[1722465578656,1e-08,64969.0,64968.0,6.88597275]
[1722465578883,0.00100001,64969.0,64968.0,1.80524846]